[Event "Early-Titled-Tuesday-Blitz-July-09-2024"]
[Site "Chess.com"]
[Date "2024.07.09"]
[Round "3"]
[White "KnightmareJoker"]
[Black "Flaccidmoves"]
[Result "0-1"]
[WhiteElo "2324"]
[BlackElo "2577"]
[TimeControl "180+1"]
[EndTime "8:29:42 PDT"]
[Termination "Flaccidmoves won by checkmate"]

1. e4 {[%clk 0:03:00.9]} 1... Nf6 {[%clk 0:02:58.8]} 2. Nc3 {[%clk 0:02:59.8]}
2... d5 {[%clk 0:02:54]} 3. e5 {[%clk 0:02:58.9]} 3... Ne4 {[%clk 0:02:53]} 4.
d4 {[%clk 0:02:57.4]} 4... Nxc3 {[%clk 0:02:49.1]} 5. bxc3 {[%clk 0:02:57.5]}
5... c5 {[%clk 0:02:49.6]} 6. Nf3 {[%clk 0:02:57.7]} 6... Nc6 {[%clk 0:02:49]}
7. Bd3 {[%clk 0:02:55.5]} 7... Bg4 {[%clk 0:02:38]} 8. h3 {[%clk 0:02:44.4]}
8... Bxf3 {[%clk 0:02:23.3]} 9. gxf3 {[%clk 0:02:44.6]} 9... e6 {[%clk 0:02:24]}
10. Be3 {[%clk 0:02:40.4]} 10... Qa5 {[%clk 0:01:57.2]} 11. Bd2 {[%clk
0:02:30.7]} 11... Qa4 {[%clk 0:01:52.4]} 12. Rb1 {[%clk 0:02:11.6]} 12... c4
{[%clk 0:01:48.6]} 13. Be2 {[%clk 0:02:10]} 13... b5 {[%clk 0:01:19.5]} 14. Rb2
{[%clk 0:02:02.8]} 14... Ba3 {[%clk 0:01:18.1]} 15. Rb1 {[%clk 0:02:02.6]} 15...
a5 {[%clk 0:01:00.4]} 16. f4 {[%clk 0:01:54.3]} 16... g6 {[%clk 0:00:58.9]} 17.
h4 {[%clk 0:01:51.3]} 17... h5 {[%clk 0:00:58.3]} 18. Rb3 {[%clk 0:01:16.8]}
18... Be7 {[%clk 0:00:47.3]} 19. Qb1 {[%clk 0:01:07.6]} 19... b4 {[%clk
0:00:41.2]} 20. Rb2 {[%clk 0:00:53.5]} 20... O-O {[%clk 0:00:26.4]} 21. Rh3
{[%clk 0:00:52]} 21... Rab8 {[%clk 0:00:20.6]} 22. Bxh5 {[%clk 0:00:36]} 22...
gxh5 {[%clk 0:00:19.8]} 23. Ke2 {[%clk 0:00:36.6]} 23... bxc3 {[%clk 0:00:13.7]}
24. Qg1+ {[%clk 0:00:35.8]} 24... Kh8 {[%clk 0:00:13.8]} 25. Rxb8 {[%clk
0:00:17.3]} 25... Nxd4+ {[%clk 0:00:13.7]} 26. Kd1 {[%clk 0:00:13]} 26... Qxc2+
{[%clk 0:00:12.6]} 27. Ke1 {[%clk 0:00:12.9]} 27... Qxd2+ {[%clk 0:00:13.5]} 28.
Kf1 {[%clk 0:00:13.5]} 28... Rxb8 {[%clk 0:00:08.9]} 29. Kg2 {[%clk 0:00:12.3]}
29... Rg8+ {[%clk 0:00:07.7]} 30. Rg3 {[%clk 0:00:13]} 30... Rxg3+ {[%clk
0:00:07.3]} 31. Kxg3 {[%clk 0:00:13.8]} 31... Nf5+ {[%clk 0:00:07.5]} 32. Kh2
{[%clk 0:00:12.8]} 32... Bxh4 {[%clk 0:00:07.7]} 33. Kh1 {[%clk 0:00:07.1]}
33... Qxf2 {[%clk 0:00:06.9]} 34. Qxf2 {[%clk 0:00:06.7]} 34... Bxf2 {[%clk
0:00:07.8]} 35. Kg2 {[%clk 0:00:07.1]} 35... Be3 {[%clk 0:00:07.9]} 36. Kf3
{[%clk 0:00:07.6]} 36... c2 {[%clk 0:00:08.4]} 37. a4 {[%clk 0:00:07.9]} 37...
c1=Q {[%clk 0:00:07.8]} 38. Ke2 {[%clk 0:00:08.8]} 38... Qd2+ {[%clk 0:00:07.9]}
39. Kf1 {[%clk 0:00:08.9]} 39... Qf2# {[%clk 0:00:08.8]} 0-1

[Event "Early-Titled-Tuesday-Blitz-July-09-2024"]
[Site "Chess.com"]
[Date "2024.07.09"]
[Round "3"]
[White "FormerProdigy"]
[Black "Individoom"]
[Result "1/2-1/2"]
[WhiteElo "2982"]
[BlackElo "2737"]
[TimeControl "180+1"]
[EndTime "8:29:44 PDT"]
[Termination "Game drawn by repetition"]

1. c4 {[%clk 0:03:00.9]} 1... Nf6 {[%clk 0:02:59.1]} 2. Nf3 {[%clk 0:03:00.3]}
2... g6 {[%clk 0:02:59.3]} 3. b3 {[%clk 0:03:00.4]} 3... Bg7 {[%clk 0:02:59.3]}
4. Bb2 {[%clk 0:03:00.9]} 4... O-O {[%clk 0:02:59.6]} 5. g3 {[%clk 0:03:00.7]}
5... d6 {[%clk 0:02:59.4]} 6. d4 {[%clk 0:02:58]} 6... e5 {[%clk 0:02:55.7]} 7.
dxe5 {[%clk 0:02:58.9]} 7... Ng4 {[%clk 0:02:55.5]} 8. Bg2 {[%clk 0:02:54.2]}
8... Nd7 {[%clk 0:02:49.2]} 9. Qd2 {[%clk 0:02:42.9]} 9... Ngxe5 {[%clk
0:02:47.4]} 10. Nc3 {[%clk 0:02:43.3]} 10... Re8 {[%clk 0:02:43]} 11. O-O {[%clk
0:02:41.1]} 11... Nxf3+ {[%clk 0:02:32.3]} 12. Bxf3 {[%clk 0:02:42]} 12... h5
{[%clk 0:02:26.8]} 13. h4 {[%clk 0:02:22.8]} 13... Ne5 {[%clk 0:02:16.5]} 14.
Bg2 {[%clk 0:02:23.2]} 14... Rb8 {[%clk 0:02:16]} 15. Rad1 {[%clk 0:02:20.4]}
15... Be6 {[%clk 0:02:11]} 16. Ne4 {[%clk 0:02:12.5]} 16... Bf5 {[%clk
0:02:08.8]} 17. Ng5 {[%clk 0:02:08.3]} 17... b6 {[%clk 0:01:18.6]} 18. Rfe1
{[%clk 0:01:54.1]} 18... a5 {[%clk 0:01:11.3]} 19. Nh3 {[%clk 0:01:47.2]} 19...
Bxh3 {[%clk 0:01:00]} 20. Bxh3 {[%clk 0:01:48.1]} 20... Qe7 {[%clk 0:01:00.4]}
21. Qc2 {[%clk 0:01:40.7]} 21... Ng4 {[%clk 0:00:56.5]} 22. Bxg7 {[%clk
0:01:37.8]} 22... Kxg7 {[%clk 0:00:57.4]} 23. Bxg4 {[%clk 0:01:31.1]} 23... hxg4
{[%clk 0:00:57.2]} 24. Rd4 {[%clk 0:01:32]} 24... f5 {[%clk 0:00:54.9]} 25. e3
{[%clk 0:01:28.1]} 25... Qf6 {[%clk 0:00:54.3]} 26. Rd5 {[%clk 0:01:23.7]} 26...
Re7 {[%clk 0:00:51.9]} 27. Red1 {[%clk 0:01:20]} 27... Rbe8 {[%clk 0:00:51.1]}
28. a3 {[%clk 0:01:19.3]} 28... Re5 {[%clk 0:00:50.5]} 29. b4 {[%clk 0:01:19.6]}
29... axb4 {[%clk 0:00:50.5]} 30. axb4 {[%clk 0:01:19.6]} 30... Rxd5 {[%clk
0:00:50.7]} 31. cxd5 {[%clk 0:01:20.5]} 31... Re7 {[%clk 0:00:50.5]} 32. Rd4
{[%clk 0:01:07.1]} 32... Qe5 {[%clk 0:00:50.2]} 33. Kg2 {[%clk 0:01:06.8]} 33...
Kf7 {[%clk 0:00:47.5]} 34. Qc6 {[%clk 0:01:05.5]} 34... Kg7 {[%clk 0:00:46.2]}
35. b5 {[%clk 0:01:03.4]} 35... Kf7 {[%clk 0:00:45.8]} 36. Qb7 {[%clk
0:00:58.5]} 36... Kg7 {[%clk 0:00:45.3]} 37. Rc4 {[%clk 0:00:50.8]} 37... Kh6
{[%clk 0:00:27.3]} 38. Qa8 {[%clk 0:00:50.2]} 38... Qg7 {[%clk 0:00:25.4]} 39.
Qd8 {[%clk 0:00:45.2]} 39... Qf7 {[%clk 0:00:23.8]} 40. Qh8+ {[%clk 0:00:39.2]}
40... Qh7 {[%clk 0:00:22.9]} 41. Qf6 {[%clk 0:00:39.4]} 41... Qf7 {[%clk
0:00:19.4]} 42. Qg5+ {[%clk 0:00:39.6]} 42... Kh7 {[%clk 0:00:19.6]} 43. Rd4
{[%clk 0:00:38.3]} 43... Re5 {[%clk 0:00:19.5]} 44. h5 {[%clk 0:00:38.1]} 44...
gxh5 {[%clk 0:00:19.3]} 45. Kg1 {[%clk 0:00:35.3]} 45... Rxd5 {[%clk 0:00:19.1]}
46. Rxd5 {[%clk 0:00:34.1]} 46... Qxd5 {[%clk 0:00:19.3]} 47. Qe7+ {[%clk
0:00:31]} 47... Kg6 {[%clk 0:00:18.9]} 48. Qxc7 {[%clk 0:00:31.9]} 48... Qxb5
{[%clk 0:00:18.8]} 49. Qxd6+ {[%clk 0:00:32.4]} 49... Kg7 {[%clk 0:00:18.8]} 50.
Qe7+ {[%clk 0:00:32.4]} 50... Kg6 {[%clk 0:00:19]} 51. Qe6+ {[%clk 0:00:32.7]}
51... Kg7 {[%clk 0:00:19.3]} 52. Qe7+ {[%clk 0:00:32.7]} 52... Kg6 {[%clk
0:00:19.7]} 53. Qe6+ {[%clk 0:00:31.1]} 53... Kg7 {[%clk 0:00:19.9]} 54. Qe7+
{[%clk 0:00:31.2]} 1/2-1/2

[Event "Early-Titled-Tuesday-Blitz-July-09-2024"]
[Site "Chess.com"]
[Date "2024.07.09"]
[Round "3"]
[White "DanLowinger"]
[Black "BardArtem"]
[Result "0-1"]
[WhiteElo "2420"]
[BlackElo "2818"]
[TimeControl "180+1"]
[EndTime "8:29:47 PDT"]
[Termination "BardArtem won on time"]

1. e4 {[%clk 0:03:00.9]} 1... e5 {[%clk 0:02:59.7]} 2. Nf3 {[%clk 0:03:00.9]}
2... Nc6 {[%clk 0:02:59.8]} 3. Bc4 {[%clk 0:03:01.6]} 3... Bc5 {[%clk
0:02:59.6]} 4. c3 {[%clk 0:03:01.7]} 4... Nf6 {[%clk 0:03:00.1]} 5. d3 {[%clk
0:03:02.2]} 5... h6 {[%clk 0:02:59.4]} 6. a4 {[%clk 0:03:02.4]} 6... a6 {[%clk
0:02:56.6]} 7. O-O {[%clk 0:03:02.2]} 7... d6 {[%clk 0:02:56.7]} 8. Nbd2 {[%clk
0:03:00.8]} 8... O-O {[%clk 0:02:56.2]} 9. Bb3 {[%clk 0:03:00.2]} 9... Re8
{[%clk 0:02:56.7]} 10. h3 {[%clk 0:02:59.2]} 10... Be6 {[%clk 0:02:56.9]} 11.
Bc2 {[%clk 0:02:57.8]} 11... d5 {[%clk 0:02:55.5]} 12. exd5 {[%clk 0:02:53.7]}
12... Bxd5 {[%clk 0:02:49.1]} 13. Re1 {[%clk 0:02:51.2]} 13... Qe7 {[%clk
0:02:32.4]} 14. d4 {[%clk 0:02:47.1]} 14... Bd6 {[%clk 0:02:32.3]} 15. dxe5
{[%clk 0:02:10.6]} 15... Nxe5 {[%clk 0:02:30.4]} 16. Nxe5 {[%clk 0:02:08.1]}
16... Bxe5 {[%clk 0:02:31.3]} 17. Re3 {[%clk 0:01:30.9]} 17... Rad8 {[%clk
0:02:09.7]} 18. Qe2 {[%clk 0:01:29.4]} 18... Qd6 {[%clk 0:02:05.2]} 19. Nc4
{[%clk 0:01:12.7]} 19... Bxc4 {[%clk 0:01:44.5]} 20. Qxc4 {[%clk 0:01:11.3]}
20... Nd5 {[%clk 0:01:45.4]} 21. Re4 {[%clk 0:00:43.7]} 21... Nb6 {[%clk
0:01:21.1]} 22. Qe2 {[%clk 0:00:39.9]} 22... Bh2+ {[%clk 0:01:01.1]} 23. Kh1
{[%clk 0:00:39.3]} 23... Rxe4 {[%clk 0:00:50]} 24. Qxe4 {[%clk 0:00:40.2]} 24...
Be5 {[%clk 0:00:50.7]} 25. Be3 {[%clk 0:00:32.9]} 25... Nd5 {[%clk 0:00:46.6]}
26. Rd1 {[%clk 0:00:29.6]} 26... b5 {[%clk 0:00:23.3]} 27. axb5 {[%clk
0:00:23.8]} 27... axb5 {[%clk 0:00:24.2]} 28. Qh7+ {[%clk 0:00:19.1]} 28... Kf8
{[%clk 0:00:23.6]} 29. b4 {[%clk 0:00:17.7]} 29... Qe6 {[%clk 0:00:05]} 30. Bc5+
{[%clk 0:00:07.6]} 30... Bd6 {[%clk 0:00:05.3]} 31. Qh8+ {[%clk 0:00:05]} 31...
Ke7 {[%clk 0:00:05.4]} 32. Qxg7 {[%clk 0:00:05.9]} 32... Bxc5 {[%clk 0:00:03.7]}
33. bxc5 {[%clk 0:00:06.8]} 33... Nf4 {[%clk 0:00:01.8]} 34. Rxd8 {[%clk
0:00:04.1]} 34... Kxd8 {[%clk 0:00:02.7]} 35. Qf8+ {[%clk 0:00:02.2]} 35... Qe8
{[%clk 0:00:01.9]} 0-1

[Event "Early-Titled-Tuesday-Blitz-July-09-2024"]
[Site "Chess.com"]
[Date "2024.07.09"]
[Round "3"]
[White "MaxLeto"]
[Black "mind1mover"]
[Result "0-1"]
[WhiteElo "2502"]
[BlackElo "2809"]
[TimeControl "180+1"]
[EndTime "8:29:48 PDT"]
[Termination "mind1mover won by checkmate"]

1. e4 {[%clk 0:02:02.3]} 1... e5 {[%clk 0:02:57]} 2. Nf3 {[%clk 0:02:02]} 2...
Nc6 {[%clk 0:02:57.3]} 3. Bb5 {[%clk 0:02:02.3]} 3... a6 {[%clk 0:02:57.2]} 4.
Ba4 {[%clk 0:02:02.2]} 4... Nf6 {[%clk 0:02:57.2]} 5. O-O {[%clk 0:02:02.5]}
5... Be7 {[%clk 0:02:57.4]} 6. Re1 {[%clk 0:02:02.9]} 6... b5 {[%clk 0:02:57.5]}
7. Bb3 {[%clk 0:02:03.1]} 7... d6 {[%clk 0:02:57.8]} 8. c3 {[%clk 0:02:03.4]}
8... O-O {[%clk 0:02:58.1]} 9. h3 {[%clk 0:02:04.1]} 9... a5 {[%clk 0:02:55.3]}
10. d4 {[%clk 0:02:02.2]} 10... a4 {[%clk 0:02:54.4]} 11. Bc2 {[%clk 0:02:02.3]}
11... Bd7 {[%clk 0:02:53]} 12. Nbd2 {[%clk 0:02:00.9]} 12... Re8 {[%clk
0:02:51.4]} 13. Nf1 {[%clk 0:02:00.4]} 13... h6 {[%clk 0:02:51.7]} 14. Ng3
{[%clk 0:02:00.7]} 14... Bf8 {[%clk 0:02:50.2]} 15. Be3 {[%clk 0:01:56.4]} 15...
a3 {[%clk 0:02:41.5]} 16. b3 {[%clk 0:01:56.2]} 16... exd4 {[%clk 0:02:42]} 17.
Nxd4 {[%clk 0:01:47.4]} 17... d5 {[%clk 0:02:41.7]} 18. Nxb5 {[%clk 0:01:36.1]}
18... dxe4 {[%clk 0:02:41.2]} 19. Bf4 {[%clk 0:01:24.8]} 19... Ne5 {[%clk
0:02:40.4]} 20. Nd4 {[%clk 0:01:23.2]} 20... c5 {[%clk 0:02:40.4]} 21. Ndf5
{[%clk 0:01:17.4]} 21... Ra6 {[%clk 0:02:13.2]} 22. Qe2 {[%clk 0:01:07.7]} 22...
Rae6 {[%clk 0:02:10.9]} 23. Rad1 {[%clk 0:00:51.5]} 23... Nd3 {[%clk 0:01:51.7]}
24. Bxd3 {[%clk 0:00:40.3]} 24... exd3 {[%clk 0:01:52.6]} 25. Qd2 {[%clk
0:00:41.2]} 25... Nd5 {[%clk 0:01:44.7]} 26. Kf1 {[%clk 0:00:18.6]} 26... Rxe1+
{[%clk 0:01:33.1]} 27. Rxe1 {[%clk 0:00:18.7]} 27... Rxe1+ {[%clk 0:01:33.9]}
28. Kxe1 {[%clk 0:00:19.5]} 28... Bxf5 {[%clk 0:01:24.7]} 29. Nxf5 {[%clk
0:00:19.2]} 29... Qf6 {[%clk 0:01:25.3]} 30. g4 {[%clk 0:00:15.2]} 30... Qxc3
{[%clk 0:01:10]} 31. Be3 {[%clk 0:00:05.1]} 31... Qa1+ {[%clk 0:01:04.9]} 32.
Qd1 {[%clk 0:00:05.3]} 32... Qxa2 {[%clk 0:00:45.5]} 33. Qxd3 {[%clk 0:00:05]}
33... Qa1+ {[%clk 0:00:41.3]} 34. Ke2 {[%clk 0:00:03.9]} 34... Nc3+ {[%clk
0:00:41.5]} 35. Kf3 {[%clk 0:00:04.6]} 35... a2 {[%clk 0:00:29.8]} 36. Kg2
{[%clk 0:00:04.9]} 36... Qd1 {[%clk 0:00:26.7]} 37. Qxc3 {[%clk 0:00:03.7]}
37... a1=Q {[%clk 0:00:26.9]} 38. Nxh6+ {[%clk 0:00:01.2]} 38... gxh6 {[%clk
0:00:26.5]} 39. Qc4 {[%clk 0:00:01]} 39... Qh1+ {[%clk 0:00:25.5]} 40. Kg3
{[%clk 0:00:01.8]} 40... Qaf1 {[%clk 0:00:19.3]} 41. Kh4 {[%clk 0:00:02.7]}
41... Qfxh3# {[%clk 0:00:16.4]} 0-1

[Event "Early-Titled-Tuesday-Blitz-July-09-2024"]
[Site "Chess.com"]
[Date "2024.07.09"]
[Round "3"]
[White "GAO"]
[Black "Ranindu2003"]
[Result "0-1"]
[WhiteElo "2452"]
[BlackElo "2676"]
[TimeControl "180+1"]
[EndTime "8:29:48 PDT"]
[Termination "Ranindu2003 won by checkmate"]

1. e4 {[%clk 0:03:00.1]} 1... c5 {[%clk 0:02:59.7]} 2. Nf3 {[%clk 0:02:59.6]}
2... Nc6 {[%clk 0:03:00.3]} 3. Bb5 {[%clk 0:02:59]} 3... g6 {[%clk 0:03:00.2]}
4. O-O {[%clk 0:02:58.6]} 4... Bg7 {[%clk 0:03:00.3]} 5. Re1 {[%clk 0:02:59.3]}
5... Nf6 {[%clk 0:03:00.3]} 6. c3 {[%clk 0:02:57.9]} 6... O-O {[%clk 0:03:00.2]}
7. h3 {[%clk 0:02:58.3]} 7... e5 {[%clk 0:02:58.3]} 8. a4 {[%clk 0:02:51.4]}
8... d6 {[%clk 0:02:46.4]} 9. Na3 {[%clk 0:02:50.2]} 9... a6 {[%clk 0:02:35.6]}
10. Bc4 {[%clk 0:02:49.6]} 10... Nh5 {[%clk 0:02:32.4]} 11. d3 {[%clk
0:02:49.3]} 11... Be6 {[%clk 0:02:29.3]} 12. Bxe6 {[%clk 0:02:08.8]} 12... fxe6
{[%clk 0:02:27.7]} 13. Qb3 {[%clk 0:02:09.7]} 13... Qe7 {[%clk 0:02:19.7]} 14.
Nc4 {[%clk 0:02:05.6]} 14... Rxf3 {[%clk 0:02:13]} 15. gxf3 {[%clk 0:02:01.6]}
15... Rf8 {[%clk 0:02:13.9]} 16. Kg2 {[%clk 0:01:46.5]} 16... d5 {[%clk
0:02:00.9]} 17. Nb6 {[%clk 0:01:43.5]} 17... d4 {[%clk 0:01:55.7]} 18. Bd2
{[%clk 0:01:21.8]} 18... Bf6 {[%clk 0:01:53.4]} 19. Rg1 {[%clk 0:01:10.7]} 19...
Bh4 {[%clk 0:01:47.1]} 20. Bh6 {[%clk 0:01:01]} 20... Rf6 {[%clk 0:01:35.6]} 21.
Bd2 {[%clk 0:00:55.7]} 21... Qf7 {[%clk 0:01:26.5]} 22. Qd1 {[%clk 0:00:48.2]}
22... g5 {[%clk 0:01:26.8]} 23. Nc4 {[%clk 0:00:44.2]} 23... h6 {[%clk
0:01:26.3]} 24. b4 {[%clk 0:00:40.7]} 24... dxc3 {[%clk 0:01:17.3]} 25. Bxc3
{[%clk 0:00:40.8]} 25... Nf4+ {[%clk 0:01:17.2]} 26. Kh2 {[%clk 0:00:40.6]}
26... Bxf2 {[%clk 0:01:10.4]} 27. Rg4 {[%clk 0:00:40.8]} 27... Bd4 {[%clk
0:00:51.4]} 28. b5 {[%clk 0:00:24.1]} 28... Bxc3 {[%clk 0:00:45.9]} 29. bxc6
{[%clk 0:00:22]} 29... Bxa1 {[%clk 0:00:43.8]} 30. Qxa1 {[%clk 0:00:21.4]} 30...
bxc6 {[%clk 0:00:42.6]} 31. Qxe5 {[%clk 0:00:20]} 31... Ng6 {[%clk 0:00:39.6]}
32. Qb8+ {[%clk 0:00:18.1]} 32... Kh7 {[%clk 0:00:37]} 33. Ne5 {[%clk
0:00:11.3]} 33... Nxe5 {[%clk 0:00:36.5]} 34. Qxe5 {[%clk 0:00:12.2]} 34... Rxf3
{[%clk 0:00:37]} 35. Rg2 {[%clk 0:00:12.8]} 35... Rxd3 {[%clk 0:00:22.6]} 36.
Qxc5 {[%clk 0:00:10.3]} 36... Qf4+ {[%clk 0:00:21]} 37. Kh1 {[%clk 0:00:09.1]}
37... Rd1+ {[%clk 0:00:16.7]} 38. Rg1 {[%clk 0:00:09.3]} 38... Qf3+ {[%clk
0:00:17.4]} 39. Kh2 {[%clk 0:00:07.3]} 39... Rd2+ {[%clk 0:00:18.3]} 40. Rg2
{[%clk 0:00:06.4]} 40... Rxg2+ {[%clk 0:00:18.7]} 41. Kh1 {[%clk 0:00:06.4]}
41... Rg3+ {[%clk 0:00:15]} 42. Kh2 {[%clk 0:00:05.7]} 42... Qg2# {[%clk
0:00:14.9]} 0-1

[Event "Early-Titled-Tuesday-Blitz-July-09-2024"]
[Site "Chess.com"]
[Date "2024.07.09"]
[Round "3"]
[White "rdarruda"]
[Black "santig8"]
[Result "1-0"]
[WhiteElo "2558"]
[BlackElo "2290"]
[TimeControl "180+1"]
[EndTime "8:29:48 PDT"]
[Termination "rdarruda won by resignation"]

1. Nf3 {[%clk 0:02:53.7]} 1... Nf6 {[%clk 0:02:59.3]} 2. d4 {[%clk 0:02:50.4]}
2... d6 {[%clk 0:02:55.2]} 3. Nc3 {[%clk 0:02:49.9]} 3... Bf5 {[%clk 0:02:54.5]}
4. Nh4 {[%clk 0:02:47.8]} 4... Be4 {[%clk 0:02:53.6]} 5. Nxe4 {[%clk 0:02:46.6]}
5... Nxe4 {[%clk 0:02:54.5]} 6. Qd3 {[%clk 0:02:43]} 6... Nf6 {[%clk 0:02:52.8]}
7. e4 {[%clk 0:02:41.7]} 7... Nbd7 {[%clk 0:02:50.8]} 8. f4 {[%clk 0:02:39.6]}
8... e5 {[%clk 0:02:39.1]} 9. Nf3 {[%clk 0:02:39.1]} 9... exd4 {[%clk
0:02:35.8]} 10. Qxd4 {[%clk 0:02:39.2]} 10... d5 {[%clk 0:02:32.4]} 11. e5
{[%clk 0:02:36.7]} 11... Bc5 {[%clk 0:02:31.8]} 12. Qd3 {[%clk 0:02:32.3]} 12...
Ne4 {[%clk 0:02:31.1]} 13. Be3 {[%clk 0:02:31.7]} 13... Bxe3 {[%clk 0:02:27.3]}
14. Qxe3 {[%clk 0:02:31.1]} 14... c6 {[%clk 0:02:27.5]} 15. Bd3 {[%clk
0:02:29.8]} 15... Qa5+ {[%clk 0:02:19.6]} 16. c3 {[%clk 0:02:23.3]} 16... Nxc3
{[%clk 0:02:00.2]} 17. Qd2 {[%clk 0:02:20.5]} 17... Nc5 {[%clk 0:01:38.9]} 18.
bxc3 {[%clk 0:02:17.9]} 18... Na4 {[%clk 0:01:34.7]} 19. Rc1 {[%clk 0:02:14.6]}
19... Qc5 {[%clk 0:01:32.1]} 20. Nd4 {[%clk 0:02:01.6]} 20... b5 {[%clk
0:01:26.4]} 21. Nb3 {[%clk 0:01:52.8]} 21... Qb6 {[%clk 0:01:23.7]} 22. Qf2
{[%clk 0:01:50.9]} 22... c5 {[%clk 0:01:19.2]} 23. Be2 {[%clk 0:01:42]} 23... b4
{[%clk 0:01:16.8]} 24. c4 {[%clk 0:01:34.8]} 24... d4 {[%clk 0:01:12.7]} 25. O-O
{[%clk 0:01:29.6]} 25... Nc3 {[%clk 0:01:12.7]} 26. Bd3 {[%clk 0:01:27.2]} 26...
Nxa2 {[%clk 0:01:12.4]} 27. Qxa2 {[%clk 0:01:25.6]} 27... a5 {[%clk 0:01:10.8]}
28. Qa4+ {[%clk 0:01:25.5]} 28... Ke7 {[%clk 0:01:09.6]} 29. Qb5 {[%clk
0:01:17.7]} 29... Qxb5 {[%clk 0:01:01.4]} 30. cxb5 {[%clk 0:01:18.6]} 30... a4
{[%clk 0:01:01.1]} 31. Nxc5 {[%clk 0:01:18.5]} 31... a3 {[%clk 0:01:01.4]} 32.
Rc4 {[%clk 0:01:14.3]} 32... a2 {[%clk 0:00:59]} 33. Ra1 {[%clk 0:01:10.5]}
33... Rhc8 {[%clk 0:00:58.1]} 34. b6 {[%clk 0:00:48.1]} 34... Ra3 {[%clk
0:00:55.5]} 35. Rxb4 {[%clk 0:00:43.4]} 35... Rc3 {[%clk 0:00:21]} 36. b7 {[%clk
0:00:41.3]} 36... Rb8 {[%clk 0:00:20.9]} 37. Bc4 {[%clk 0:00:25]} 37... d3
{[%clk 0:00:17]} 38. Nxd3 {[%clk 0:00:22.5]} 38... Kd7 {[%clk 0:00:15.6]} 39.
Rxa2 {[%clk 0:00:22]} 39... Kc6 {[%clk 0:00:14.8]} 40. Ra6+ {[%clk 0:00:21]}
40... Kc7 {[%clk 0:00:14.2]} 41. Ra7 {[%clk 0:00:16.1]} 41... Rc2 {[%clk
0:00:13.9]} 42. Ba6 {[%clk 0:00:14.2]} 42... Kd7 {[%clk 0:00:10]} 43. Ra8 {[%clk
0:00:14.3]} 43... Kc7 {[%clk 0:00:09]} 44. Rxb8 {[%clk 0:00:14.3]} 44... Kxb8
{[%clk 0:00:09.9]} 45. Rc4 {[%clk 0:00:13.6]} 45... Rxc4 {[%clk 0:00:09.4]} 46.
Bxc4 {[%clk 0:00:14.5]} 46... Kxb7 {[%clk 0:00:09.8]} 47. Bxf7 {[%clk
0:00:15.2]} 47... Kc6 {[%clk 0:00:10.4]} 48. f5 {[%clk 0:00:15.4]} 1-0

[Event "Early-Titled-Tuesday-Blitz-July-09-2024"]
[Site "Chess.com"]
[Date "2024.07.09"]
[Round "3"]
[White "Schack-Hugo"]
[Black "Fandorine"]
[Result "1-0"]
[WhiteElo "2536"]
[BlackElo "2907"]
[TimeControl "180+1"]
[EndTime "8:29:50 PDT"]
[Termination "Schack-Hugo won by resignation"]

1. Nf3 {[%clk 0:03:00.9]} 1... Nf6 {[%clk 0:02:59.9]} 2. b3 {[%clk 0:03:00.9]}
2... c5 {[%clk 0:02:56.2]} 3. Bb2 {[%clk 0:03:01.2]} 3... d5 {[%clk 0:02:56.6]}
4. g3 {[%clk 0:03:01.2]} 4... g6 {[%clk 0:02:56.5]} 5. Bg2 {[%clk 0:03:01.6]}
5... h5 {[%clk 0:02:57.2]} 6. O-O {[%clk 0:03:02]} 6... Nc6 {[%clk 0:02:53.4]}
7. d4 {[%clk 0:03:01.9]} 7... cxd4 {[%clk 0:02:53.8]} 8. Nxd4 {[%clk 0:03:02.8]}
8... h4 {[%clk 0:02:54.6]} 9. c4 {[%clk 0:03:02]} 9... hxg3 {[%clk 0:02:54.6]}
10. fxg3 {[%clk 0:02:58.3]} 10... Bh3 {[%clk 0:02:52.4]} 11. Nxc6 {[%clk
0:02:56.7]} 11... bxc6 {[%clk 0:02:50.5]} 12. cxd5 {[%clk 0:02:56.8]} 12... Bxg2
{[%clk 0:02:31.1]} 13. Kxg2 {[%clk 0:02:57.7]} 13... Qd7 {[%clk 0:02:22.3]} 14.
h4 {[%clk 0:02:40.4]} 14... Rxh4 {[%clk 0:01:58.8]} 15. gxh4 {[%clk 0:02:24]}
15... Qg4+ {[%clk 0:01:57.5]} 16. Kf2 {[%clk 0:02:18.5]} 16... Qxh4+ {[%clk
0:01:45.3]} 17. Kg2 {[%clk 0:01:59.8]} 17... Qg4+ {[%clk 0:01:30.4]} 18. Kh2
{[%clk 0:01:57.8]} 18... Nxd5 {[%clk 0:01:29.2]} 19. Qd4 {[%clk 0:01:52]} 19...
Qxe2+ {[%clk 0:01:27.5]} 20. Rf2 {[%clk 0:01:43.9]} 20... Qh5+ {[%clk
0:01:25.4]} 21. Kg2 {[%clk 0:01:43.4]} 21... Bh6 {[%clk 0:01:10.5]} 22. Nc3
{[%clk 0:00:42.2]} 22... O-O-O {[%clk 0:00:53.1]} 23. Nxd5 {[%clk 0:00:31.5]}
23... Rxd5 {[%clk 0:00:53]} 24. Qe4 {[%clk 0:00:23.1]} 24... Kd7 {[%clk
0:00:20]} 25. Qf3 {[%clk 0:00:21.2]} 25... Qxf3+ {[%clk 0:00:11.9]} 26. Kxf3
{[%clk 0:00:19.8]} 26... f5 {[%clk 0:00:06.6]} 27. Re2 {[%clk 0:00:15.4]} 27...
g5 {[%clk 0:00:04.4]} 28. Rae1 {[%clk 0:00:12.3]} 28... g4+ {[%clk 0:00:05]} 29.
Kg2 {[%clk 0:00:12.2]} 29... Bg5 {[%clk 0:00:03.9]} 30. Re5 {[%clk 0:00:12.2]}
30... Rd2+ {[%clk 0:00:02.5]} 31. R1e2 {[%clk 0:00:12.6]} 31... Rxe2+ {[%clk
0:00:02.8]} 32. Rxe2 {[%clk 0:00:13.5]} 32... f4 {[%clk 0:00:03.2]} 33. Re4
{[%clk 0:00:11.7]} 33... e6 {[%clk 0:00:02.2]} 34. Be5 {[%clk 0:00:10.1]} 34...
f3+ {[%clk 0:00:02.5]} 35. Kg3 {[%clk 0:00:07.6]} 35... c5 {[%clk 0:00:02.7]}
36. Bf4 {[%clk 0:00:05.2]} 36... Bxf4+ {[%clk 0:00:02.7]} 37. Rxf4 {[%clk
0:00:04]} 37... e5 {[%clk 0:00:03.4]} 38. Rxg4 {[%clk 0:00:04.3]} 38... e4
{[%clk 0:00:04]} 39. Rxe4 {[%clk 0:00:04.5]} 1-0